[Event "1st FIDE Olympiad DIS 2023"]
[Site "Belgrade"]
[Date "2023.02.04"]
[Round "6.11"]
[White "Kozhabekov, Adilkhan"]
[Black "Abiad Parra, Victor"]
[Result "0-1"]
[ECO "D03"]
[WhiteElo "1939"]
[BlackElo "1855"]
[Annotator "TA"]
[PlyCount "112"]
[EventDate "2023.01.30"]
[EventType "team-tourn"]
[EventCountry "SRB"]
[SourceTitle "playchess.com"]
[Source "ChessBase"]
[SourceQuality "1"]
[WhiteTeam "Kazakhstan"]
[BlackTeam "Venezuela"]
[WhiteTeamCountry "KAZ"]
[BlackTeamCountry "VEN"]
[TimeControl "40/5400+30:1800+30"]

{[%evp 10,112,0,0,16,5,16,16,31,12,34,16,13,2,13,0,0,-11,10,0,8,7,13,0,0,-18,6,0,0,0,0,0,0,0,0,0,0,0,0,0,0,0,0,0,0,0,0,0,0,0,0,0,0,0,0,0,0,0,0,0,0,0,0,0,0,0,0,-11,-11,-11,0,-11,0,0,0,0,0,0,22,0,0,0,0,0,0,0,0,-627,-680,-656,-668,-656,-579,-6079,-996,-5357,-5374,-5369,-5342,-1965,-614,-29996,-29993,-29997,-29998]} 1. d4 {[%emt 0:00:24]} Nf6 {[%emt 0:00:07]} 2. Nf3 {[%emt 0:00:13]} e6 {[%emt 0:00:40]} 3. Bg5 {[%emt 0:01:02]} h6 {[%emt 0:00:14]} 4. Bh4 {[%emt 0:00:45]} Be7 {[%emt 0:00:36]} 5. Nbd2 {[%emt 0:00:12]} d5 {[%emt 0:01:11]} 6. e3 {[%emt 0:00:06]} c5 {[%emt 0:00:35] D03: 1 d4 d5 2 Nf3 Nf6 3 Bg5, including Torre Attack with early ...d5.} 7. c3 {[%emt 0:02:26]} Qb6 {[%emt 0:04:06]} 8. Rb1 {[%emt 0:02:42]} Bd7 {[%emt 0:05:41] The position is equal.} 9. Ne5 {[%emt 0:04:43] [#]} Bb5 $146 {[%emt 0:04:20]} ({Predecessor:} 9... cxd4 10. Nxd7 Nfxd7 11. Bxe7 dxe3 12. Ba3 exd2+ 13. Qxd2 Nc6 14. Be2 Nf6 15. O-O Ne4 {½-½ Gerstner,W (2370)-Biebinger,G (2330) Badenweiler op 1995 (4)}) 10. Bxb5+ {[%emt 0:13:47]} (10. dxc5 {is interesting.} Qxc5 11. b4 Qb6 12. c4) 10... Qxb5 {[%emt 0:00:07]} 11. a4 {[%emt 0:07:02]} Qa6 {[%emt 0:05:03]} 12. b4 {[%emt 0:04:41]} cxb4 {[%emt 0:12:45]} 13. cxb4 {[%emt 0:00:07]} O-O {[%emt 0:02:28]} 14. b5 {[%emt 0:00:59]} Qa5 {[%emt 0:12:36]} 15. O-O {[%emt 0:02:24]} Qd8 {[%emt 0:13:05]} 16. Qb3 {[%emt 0:17:30]} Nbd7 {[%emt 0:02:59]} 17. Rbc1 {[%emt 0:11:14]} Rc8 {[%emt 0:13:16]} 18. Rxc8 {[%emt 0:03:05]} Qxc8 {[%emt 0:00:08]} 19. Nxd7 {[%emt 0:06:16]} Qxd7 {[%emt 0:00:10]} 20. Bxf6 {[%emt 0:00:26]} Bxf6 {[%emt 0:00:17]} 21. Rc1 {[%emt 0:00:14]} Rc8 {[%emt 0:02:37] Prevents Qc2} 22. Qa3 {[%emt 0:07:27]} Rc7 {[%emt 0:05:23]} 23. Rxc7 {[%emt 0:06:10]} Qxc7 $11 {[%emt 0:00:02][%mdl 4096] Endgame KQB-KQN} 24. Qc5 {[%emt 0:00:15]} Qa5 {[%emt 0:03:02]} 25. Qc2 {[%emt 0:01:13]} g6 {[%emt 0:00:39]} 26. g3 {[%emt 0:00:34]} Kg7 {[%emt 0:00:13]} 27. Kg2 {[%emt 0:00:12]} Qb4 {[%emt 0:03:21]} 28. Kf1 {[%emt 0:02:40]} h5 {[%emt 0:01:09]} 29. h4 {[%emt 0:00:25]} Be7 {[%emt 0:03:55]} 30. Ke2 {[%emt 0:00:12]} Bf6 {[%emt 0:00:44]} 31. Qb3 {[%emt 0:01:23]} Be7 {[%emt 0:01:05]} 32. Qc2 {[%emt 0:03:46]} Bd8 {[%emt 0:00:52]} 33. Nf3 {[%emt 0:00:48]} Ba5 {[%emt 0:01:16]} 34. Ne5 {[%emt 0:00:48]} Qe1+ {[%emt 0:00:13]} 35. Kf3 {[%emt 0:00:01]} Qh1+ {[%emt 0:00:29]} 36. Ke2 $1 {[%emt 0:00:05]} (36. Kf4 $2 Qg2 37. Nf3 e5+ 38. dxe5 (38. Kxe5 Qxf3 39. Qc8 Bb4) (38. Nxe5 $2 Be1 $19) 38... Qh3 $19) 36... Qe1+ {[%emt 0:00:06]} 37. Kf3 {[%emt 0:00:01]} Qf1 {[%emt 0:01:05]} 38. Qd3 {[%emt 0:01:16]} Qh1+ {[%emt 0:00:39]} 39. Ke2 $1 {[%emt 0:00:08]} (39. Kf4 $2 Qg2 40. Qc2 Be1 $19) 39... Qe1+ {[%emt 0:00:14]} 40. Kf3 {[%emt 0:00:01]} Qg1 {[%emt 0:01:29] [#] ...Be1 would be deadly.} 41. Qc2 {[%emt 0:30:35]} Qh1+ {[%emt 0:31:00]} 42. Ke2 $1 {[%emt 0:00:07]} (42. Kf4 $2 Qg2 43. Nf3 e5+ 44. dxe5 (44. Kxe5 Qxf3 45. Qc8 Bb4) (44. Nxe5 $2 Be1 $19) 44... Qh3 $19) 42... Qe1+ {[%emt 0:00:40]} 43. Kf3 {[%emt 0:03:35]} Bc3 {[%emt 0:01:23]} 44. Nd3 {[%emt 0:00:00]} Qh1+ {[%emt 0:00:00]} 45. Ke2 {[%emt 0:00:00]} Ba5 {[%emt 0:00:00]} 46. Ne5 {[%emt 0:00:00]} Qe1+ {[%emt 0:00:00]} 47. Kf3 {[%emt 0:00:00]} Qf1 {[%emt 0:00:00]} 48. Qc8 $2 {[%emt 0:00:00][%mdl 8192]} (48. Qd3 $11 Qh1+ 49. Ke2 (49. Kf4 $2 Qg2 $19)) 48... Be1 $19 {[%emt 0:00:00][%csl Ge1][%cal Rf1f2]} (48... Qh1+ 49. Ke2 $11) 49. Qc2 {[%emt 0:00:00][%cal Oe5f7]} Qh1+ {[%emt 0:00:00]} 50. Ke2 {[%emt 0:00:00] [#] Qc7 would kill now.} Bxf2 $1 {[%emt 0:00:00][%mdl 576] Strongly threatening ...Qe1+. Decoy} 51. Qc7 {[%emt 0:02:33]} (51. Qd1 Qxd1+) 51... Qe1+ {[%emt 0:00:00]} (51... Bxg3 $2 52. Qxf7+ Kh8 53. Nxg6#) 52. Kf3 {[%emt 0:00:05]} Qxe3+ {[%emt 0:00:00]} (52... Bxg3 $2 {leads to mate.} 53. Qxf7+ Kh8 54. Nxg6#) 53. Kg2 {[%emt 0:00:01]} Qxg3+ {[%emt 0:00:00]} (53... Qxd4 $2 {is a self mate.} 54. Qxf7+ Kh8 55. Nxg6#) 54. Kf1 {[%emt 0:00:00]} Qf4 {[%emt 0:00:00] ( -> ...Be3+)} (54... Qxh4 $2 {gets mated.} 55. Qxf7+ Kh8 56. Nxg6#) 55. Qxb7 {[%emt 0:02:44]} Bxd4+ {[%emt 0:00:00]} 56. Kg2 {[%emt 0:00:08]} Qf2+ {[%emt 0:00:00] Artfully played by Abiad Parra.   Weighted Error Value: White=0.37/Black=0.04 (flawless)} 0-1

[Event "1st FIDE Olympiad DIS 2023"]
[Site "Belgrade"]
[Date "2023.02.04"]
[Round "6.11"]
[White "Morales Santos, Natasha"]
[Black "Nestorovic, Vladimir"]
[Result "1/2-1/2"]
[ECO "D10"]
[WhiteElo "1893"]
[BlackElo "2171"]
[Annotator "TA"]
[PlyCount "54"]
[EventDate "2023.01.30"]
[EventType "team-tourn"]
[EventCountry "SRB"]
[SourceTitle "playchess.com"]
[Source "ChessBase"]
[SourceQuality "1"]
[WhiteTeam "Puerto Rico"]
[BlackTeam "Croatia"]
[WhiteTeamCountry "PUR"]
[BlackTeamCountry "CRO"]
[TimeControl "40/5400+30:1800+30"]

{[%evp 9,54,31,38,16,17,7,6,0,11,0,4,-10,28,0,0,-28,-34,-73,-78,-95,-58,-50,54,58,117,119,131,115,146,51,37,18,57,15,24,28,19,13,13,11,9,12,128,0,0,0,0]} 1. d4 {[%emt 0:00:03]} d5 {[%emt 0:01:23]} 2. c4 {[%emt 0:00:04]} c6 {[%emt 0:00:18]} 3. cxd5 {[%emt 0:00:02]} cxd5 {[%emt 0:00:10]} 4. Bf4 {[%emt 0:00:06]} Nc6 {[%emt 0:00:42]} 5. e3 {[%emt 0:00:03]} Bf5 {[%emt 0:00:48]} 6. Nc3 {[%emt 0:00:26] D10: Slav Defence: 3 cxd5 (without early Nf3) and 3 Nc3.} (6. Qb3 $5 {[%cal Rb3b7]}) 6... e6 {[%emt 0:00:17]} 7. Be2 {[%emt 0:00:12] [#]} Bd6 $146 {[%emt 0:00:44]} ({Predecessor:} 7... Nf6 8. g4 Bg6 9. h4 h5 10. g5 Ne4 11. Qb3 Qd7 12. Nf3 f6 13. Rg1 Bf5 14. Nxe4 Bxe4 {0-1 Hughes,P (1794)-Wager,J (2014) GBR-ch 65+ 106th 2019 (1)}) 8. Bxd6 {[%emt 0:01:38]} Qxd6 {[%emt 0:00:07]} 9. g4 {[%emt 0:04:26]} Bg6 {[%emt 0:01:18]} 10. h4 {[%emt 0:00:03]} f6 {[%emt 0:00:57]} 11. Nh3 {[%emt 0:20:38]} (11. h5 $5 Bf7 $8 12. Qb3 $14) 11... Bf7 {[%emt 0:01:18]} 12. Bf3 {[%emt 0:01:24]} Nge7 {[%emt 0:00:16]} 13. g5 {[%emt 0:00:43]} e5 {[%emt 0:00:48]} 14. gxf6 {[%emt 0:00:59]} gxf6 {[%emt 0:00:11]} 15. dxe5 {[%emt 0:01:45]} fxe5 {[%emt 0:01:14]} ({Better is} 15... Qxe5 $15 16. Ne2 Qxb2) 16. Ng5 $14 {[%emt 0:00:20] Nxf7 would be deadly.} Bg8 {[%emt 0:00:00]} (16... Rd8 $14) 17. Bh5+ $16 {[%emt 0:05:28]} Ng6 {[%emt 0:00:03]} 18. Qg4 {[%emt 0:01:36] White is much more active.} Qb4 {[%emt 0:04:07] [#]} 19. Qxb4 {[%emt 0:20:23]} (19. Qf5 $1 $16 Qd6 20. O-O-O) 19... Nxb4 $14 {[%emt 0:00:11]} 20. O-O-O {[%emt 0:00:22] Inhibits Nc2. And now a3 would win.} e4 {[%emt 0:00:34]} 21. Rd4 {[%emt 0:03:31]} (21. f4 $5 {[%cal Rf4f5]} exf3 22. a3 $14 (22. Nxf3 O-O-O $16) (22. Bxf3 Ne5 $16)) 21... Nc6 {[%emt 0:10:35]} 22. Rd2 $36 {[%emt 0:00:35][%mdl 2048] White fights for an advantage.} O-O-O {[%emt 0:00:13]} 23. f4 {[%emt 0:05:07]} exf3 {[%emt 0:02:05]} 24. Bxf3 {[%emt 0:01:15]} h6 {[%emt 0:01:11] ...Nge5 is the strong threat.} 25. Nh3 {[%emt 0:00:40]} Nxh4 {[%emt 0:01:03] [#]} (25... Nce5 $11 26. Bxd5 Bxd5 27. Rxd5 Nd3+ 28. Kb1 Nxh4) 26. Bxd5 {[%emt 0:00:04]} (26. Bg4+ $1 $16 Kb8 27. Nf4) 26... Bxd5 $11 {[%emt 0:00:27]} 27. Rxd5 {[%emt 0:00:34]} Rxd5 {[%emt 0:01:19] Weighted Error Value: White=0.22 (precise) /Black=0.28 (precise)} 1/2-1/2

[Event "1st FIDE Olympiad DIS 2023"]
[Site "Belgrade"]
[Date "2023.02.04"]
[Round "6.12"]
[White "Cajzler, Hinko"]
[Black "Rosikhin, Igor"]
[Result "1-0"]
[ECO "E61"]
[WhiteElo "2060"]
[BlackElo "1856"]
[Annotator "TA"]
[PlyCount "81"]
[EventDate "2023.01.30"]
[EventType "team-tourn"]
[EventCountry "SRB"]
[SourceTitle "playchess.com"]
[Source "ChessBase"]
[SourceQuality "1"]
[WhiteTeam "Croatia"]
[BlackTeam "Belarus"]
[WhiteTeamCountry "CRO"]
[BlackTeamCountry "BLR"]
[TimeControl "40/5400+30:1800+30"]

{[%evp 13,81,59,62,41,70,65,95,79,102,73,117,120,120,122,177,170,183,173,182,132,166,133,160,165,248,240,243,252,250,246,245,241,243,235,265,106,106,100,116,95,111,91,95,99,151,146,184,183,181,149,181,173,215,202,243,244,507,471,543,541,623,603,1728,1568,1523,876,1358,1289,29975,29976]} 1. d4 {[%emt 0:00:15]} g6 {[%emt 0:00:24]} 2. c4 {[%emt 0:00:37]} Bg7 {[%emt 0:00:09]} 3. Nf3 {[%emt 0:00:14]} c5 {[%emt 0:00:14]} 4. Nc3 {[%emt 0:01:43]} d6 {[%emt 0:01:54]} 5. e3 {[%emt 0:04:03][%cal Be2e3,Be3e4][%mdl 32]} Nd7 {[%emt 0:04:40]} 6. Be2 {[%emt 0:00:20]} Ngf6 {[%emt 0:00:11]} 7. O-O {[%emt 0:00:22]} O-O {[%emt 0:00:13]} 8. d5 {[%emt 0:03:01] E61: King's Indian: Early deviations for White, including Smyslov System.} Ne8 {[%emt 0:04:25]} 9. e4 {[%emt 0:00:34] [#]} h6 $146 {[%emt 0:04:34]} ({Predecessor:} 9... e5 10. dxe6 fxe6 11. Bg5 Qb6 12. Qd2 a6 13. Rad1 Ne5 14. Nxe5 Bxe5 15. Be3 Bd7 {½-½ Delaney,K (2200)-O'Gorman,T (2145) Dublin Irish Easter IM 2018 (5)}) 10. Qc2 {[%emt 0:00:48] White is better.} Ne5 {[%emt 0:11:11]} 11. Ne1 {[%emt 0:00:50]} g5 {[%emt 0:07:39]} 12. f4 {[%emt 0:01:10]} gxf4 {[%emt 0:01:46]} 13. Bxf4 {[%emt 0:00:14]} Nc7 {[%emt 0:04:58]} (13... Ng6 $16) 14. Nf3 $18 {[%emt 0:00:49]} Ng6 {[%emt 0:01:02]} 15. Be3 {[%emt 0:00:16]} e5 {[%emt 0:11:28]} 16. dxe6 {[%emt 0:02:48]} ({Better is} 16. Qd2 $18) 16... Nxe6 {[%emt 0:00:12]} 17. Nd5 {[%emt 0:00:37]} Ne5 {[%emt 0:15:04]} 18. Kh1 {[%emt 0:10:48]} Nc6 {[%emt 0:00:00]} (18... b6 $142 19. Rad1 Ng4) 19. Qd2 {[%emt 0:00:46]} Kh7 {[%emt 0:00:00]} 20. Bd3 {[%emt 0:00:27] [#] Black must now prevent e5+.} Ne5 {[%emt 0:00:00]} 21. Nxe5 {[%emt 0:00:34]} dxe5 {[%emt 0:00:00]} 22. Rf2 {[%emt 0:00:51]} Nd4 {[%emt 0:06:07]} 23. Raf1 {[%emt 0:00:52]} f6 {[%emt 0:00:25]} 24. Bxd4 {[%emt 0:07:25]} (24. b4 $18) 24... cxd4 $16 {[%emt 0:00:19]} 25. Qe2 {[%emt 0:00:23]} Bd7 {[%emt 0:14:05]} 26. Qh5 {[%emt 0:00:16]} Rc8 {[%emt 0:00:38]} 27. Qh4 {[%emt 0:00:22][%cal Rd5f6] White has more active pieces.} Rc6 {[%emt 0:00:22]} 28. b4 {[%emt 0:01:25]} (28. Rf3 {with more complications.} Be6 29. Rg3 Rd6 30. Kg1) 28... a6 {[%emt 0:08:12]} (28... b6 $142) 29. a4 {[%emt 0:01:18][%cal Ba2a4,Ba4b5,Bb5c6,Bc6c7][%mdl 32]} Rd6 {[%emt 0:01:24]} 30. c5 {[%emt 0:00:59]} Rc6 {[%emt 0:00:48]} 31. Rc2 {[%emt 0:01:15]} Re6 {[%emt 0:01:32]} 32. b5 {[%emt 0:00:29]} axb5 {[%emt 0:00:51]} 33. axb5 {[%emt 0:00:10]} Be8 {[%emt 0:00:20]} 34. Rfc1 {[%emt 0:03:56]} Bg6 $2 {[%emt 0:00:45] [#]} (34... Bd7 35. c6 bxc6) 35. c6 $18 {[%emt 0:00:20]} bxc6 {[%emt 0:00:19]} 36. bxc6 {[%emt 0:00:06]} Qa5 {[%emt 0:00:52]} 37. c7 {[%emt 0:00:29]} Rc8 {[%emt 0:00:11]} 38. Qh3 {[%emt 0:03:09]} Bf7 {[%emt 0:01:03]} 39. Qf5+ {[%emt 0:01:57]} Kh8 {[%emt 0:00:14]} 40. h3 {[%emt 0:00:20]} Ree8 {[%emt 0:00:38]} 41. Nxf6 {[%emt 0:30:29] Weighted Error Value: White=0.16 (very precise) /Black=0.58} 1-0

[Event "1st FIDE Olympiad DIS 2023"]
[Site "Belgrade"]
[Date "2023.02.04"]
[Round "6.12"]
[White "Monterrey, Henry"]
[Black "Zhukovskaya, Nina"]
[Result "1-0"]
[ECO "B12"]
[WhiteElo "1759"]
[BlackElo "1474"]
[Annotator "NA RC COMBH"]
[PlyCount "55"]
[EventDate "2023.01.30"]
[EventType "team-tourn"]
[EventCountry "SRB"]
[SourceTitle "playchess.com"]
[Source "ChessBase"]
[SourceQuality "1"]
[WhiteTeam "Venezuela"]
[BlackTeam "Kazakhstan"]
[WhiteTeamCountry "VEN"]
[BlackTeamCountry "KAZ"]
[TimeControl "40/5400+30:1800+30"]

1. e4 {[%emt 0:00:25]} e6 {[%emt 0:00:19]} 2. d4 {[%emt 0:00:07]} d5 {[%emt 0:00:03]} 3. Nd2 {[%emt 0:00:44]} c6 {[%emt 0:03:40]} 4. e5 {[%emt 0:01:30]} c5 {[%emt 0:03:05]} 5. c3 {[%emt 0:00:17]} a6 {[%emt 0:00:57]} 6. Bd3 {[%emt 0:02:19]} Nc6 {[%emt 0:02:24]} 7. Ne2 {[%emt 0:01:34]} cxd4 {[%emt 0:09:16]} 8. cxd4 {[%emt 0:00:00]} Qb6 {[%emt 0:01:36]} 9. Nf3 {[%emt 0:00:41]} Bd7 {[%emt 0:02:23]} 10. O-O {[%emt 0:00:00]} h6 {[%emt 0:01:43]} 11. a3 {[%emt 0:05:51]} Nd8 {[%emt 0:08:24]} 12. Nc3 {[%emt 0:00:46]} Ne7 {[%emt 0:01:26]} 13. Re1 {[%emt 0:04:48]} Nec6 {[%emt 0:00:39]} 14. Bc2 {[%emt 0:02:56]} Na5 {[%emt 0:03:52]} 15. b3 {[%emt 0:04:25]} Rc8 {[%emt 0:05:44]} 16. Bb2 {[%emt 0:00:00]} Nc4 {[%emt 0:04:49]} 17. bxc4 {[%emt 0:11:26]} Qxb2 {[%emt 0:12:20]} 18. Na4 {[%emt 0:00:00]} Bxa4 {[%emt 0:01:25]} 19. Bxa4+ {[%emt 0:00:00]} Nc6 {[%emt 0:04:40]} 20. cxd5 {[%emt 0:00:00]} exd5 {[%emt 0:00:30]} 21. Rb1 {[%emt 0:00:00]} Qxa3 {[%emt 0:05:49]} 22. Rxb7 {[%emt 0:00:00]} Qc3 {[%emt 0:01:13]} 23. e6 {[%emt 0:00:00]} Be7 {[%emt 0:00:40]} 24. exf7+ {[%emt 0:00:00]} Kxf7 {[%emt 0:00:10]} 25. Bxc6 {[%emt 0:00:00]} Qa3 {[%emt 0:04:02]} 26. Bxd5+ {[%emt 0:00:00]} Kf6 {[%emt 0:00:23]} 27. Re6+ {[%emt 0:00:00]} Kf5 {[%emt 0:02:08]} 28. Qb1+ {[%emt 0:00:00]} 1-0

[Event "1st FIDE Olympiad DIS 2023"]
[Site "Belgrade"]
[Date "2023.02.04"]
[Round "6.13"]
[White "Zaynidinov, Sirojiddin"]
[Black "Morales Romero, Pedro"]
[Result "0-1"]
[ECO "E68"]
[WhiteElo "2042"]
[BlackElo "2339"]
[Annotator "TA"]
[PlyCount "70"]
[EventDate "2023.01.30"]
[EventType "team-tourn"]
[EventCountry "SRB"]
[SourceTitle "playchess.com"]
[Source "ChessBase"]
[SourceQuality "1"]
[WhiteTeam "Uzbekistan"]
[BlackTeam "Cuba"]
[WhiteTeamCountry "UZB"]
[BlackTeamCountry "CUB"]
[TimeControl "40/5400+30:1800+30"]

{[%evp 16,70,33,25,42,28,16,30,23,-38,-41,-55,-45,-49,-38,-62,-13,-19,0,-52,-31,-63,-46,-83,-35,-108,-56,-80,16,-138,-68,-110,-73,-217,-194,-227,-235,-230,-256,-237,-251,-245,-246,-252,-245,-229,-244,-252,-242,-285,-281,-346,-278,-29989,-29990,-29997,-29998]} 1. c4 {[%emt 0:01:51]} Nf6 {[%emt 0:00:11]} 2. Nc3 {[%emt 0:00:08]} g6 {[%emt 0:00:15]} 3. g3 {[%emt 0:03:02]} Bg7 {[%emt 0:00:09]} 4. Bg2 {[%emt 0:00:11]} e5 {[%emt 0:00:31]} 5. e4 {[%emt 0:07:08]} d6 {[%emt 0:02:39]} 6. Nf3 {[%emt 0:05:44]} O-O {[%emt 0:00:36]} 7. d4 {[%emt 0:01:50]} Nbd7 {[%emt 0:01:30]} 8. O-O {[%emt 0:01:00]} exd4 {[%emt 0:01:29]} 9. Nxd4 {[%emt 0:01:36]} (9. Qxd4 Re8 10. Bg5 h6 11. Bxf6 Qxf6 12. Qxf6 Bxf6 $11) 9... c6 {[%emt 0:00:06] E68: King's Indian: Fianchetto: 6...Nbd7 7 0-0 e5 8 e4.} 10. Bf4 {[%emt 0:08:04]} Ne5 {[%emt 0:05:52]} 11. b3 {[%emt 0:01:33]} Nh5 {[%emt 0:00:56] White has an edge.} 12. Bxe5 {[%emt 0:05:19]} (12. Bc1 $11) 12... dxe5 $15 {[%emt 0:01:38]} 13. Nc2 {[%emt 0:01:18] [#]} Qg5 $146 {[%emt 0:01:30]} ({Predecessor:} 13... Qe7 14. Qe2 Be6 15. Rad1 Nf6 16. Rd3 a6 17. Ne3 Rfd8 18. Rfd1 Rxd3 19. Qxd3 Bf8 {0-1 Izijk,J (1995)-Lorenzana,W (2292) Olympiad-43 Batumi 2018 (6.70)}) 14. Qc1 {[%emt 0:01:54]} Qe7 {[%emt 0:01:24]} 15. Qa3 {[%emt 0:03:10]} Qe8 {[%emt 0:04:06]} (15... Qxa3 $15 16. Nxa3 Rd8) 16. Rad1 $11 {[%emt 0:16:19]} f5 {[%emt 0:02:34]} 17. f3 {[%emt 0:01:27]} (17. Na4 $11) 17... Be6 {[%emt 0:02:15]} 18. Na4 {[%emt 0:13:02]} Rf7 {[%emt 0:00:59]} 19. Qc1 {[%emt 0:02:42]} Qe7 {[%emt 0:05:31]} ({Black should play} 19... f4 $17 20. g4 Nf6) 20. Rfe1 {[%emt 0:06:48]} (20. exf5 $15 gxf5 21. Qd2) 20... b5 {[%emt 0:04:49]} (20... f4 $17 21. g4 Nf6) 21. Nb2 {[%emt 0:04:06]} a5 {[%emt 0:07:27]} ({Better is} 21... f4 $1 $17 {[%cal Rf4g3]} 22. g4 Nf6 23. cxb5 cxb5) 22. a4 $2 {[%emt 0:04:38]} (22. exf5 $1 $11 Bxf5 23. Kh1) 22... Raf8 {[%emt 0:03:04]} (22... f4 $1 $17 {[%cal Rf4g3]} 23. g4 Nf6) 23. axb5 {[%emt 0:00:53]} cxb5 {[%emt 0:00:17] And now ...f4 would win.} ({Reject} 23... fxe4 $6 24. Rxe4 cxb5 25. Ne3 $15) 24. Ne3 {[%emt 0:00:24] [#] Loses the game.} (24. Qd2 $17) 24... f4 $1 $19 {[%emt 0:01:23]} 25. Nf1 {[%emt 0:00:15]} Qc5+ {[%emt 0:01:08]} 26. Kh1 {[%emt 0:00:24]} fxg3 {[%emt 0:02:24]} 27. Nd3 {[%emt 0:02:36]} Qe7 {[%emt 0:10:44] White must now prevent ...bxc4.} 28. Nxg3 {[%emt 0:00:19]} Nxg3+ {[%emt 0:00:28]} 29. hxg3 {[%emt 0:00:06]} bxc4 {[%emt 0:00:06]} 30. bxc4 {[%emt 0:00:14]} h5 {[%emt 0:00:07]} 31. Kh2 {[%emt 0:05:40]} h4 {[%emt 0:00:48]} 32. g4 {[%emt 0:00:44] [#]} h3 $1 {[%emt 0:00:18][%mdl 512]} 33. Kxh3 {[%emt 0:00:32] [#]} (33. Bh1 a4) 33... Bh6 $1 {[%emt 0:01:04]} (33... Rxf3+ 34. Bxf3 Rxf3+ 35. Kg2 Bxg4 36. Rh1 $11) 34. Qc2 $2 {[%emt 0:00:47]} (34. Qxh6 $19 Rh7 35. Qxh7+ Kxh7 36. Rh1 (36. Nxe5 $2 {perishes.} Kg7 $19)) 34... Bf4 {[%emt 0:00:32]} 35. Nxf4 {[%emt 0:00:22]} Rh7+ {[%emt 0:00:07] Weighted Error Value: White=0.55/Black=0.17 (very precise)} 0-1

[Event "1st FIDE Olympiad DIS 2023"]
[Site "Belgrade"]
[Date "2023.02.04"]
[Round "6.13"]
[White "Gora, Tapiwa"]
[Black "Banda Aaron"]
[Result "0-1"]
[ECO "B07"]
[WhiteElo "1959"]
[BlackElo "1901"]
[Annotator "TA"]
[PlyCount "84"]
[EventDate "2023.01.30"]
[EventType "team-tourn"]
[EventCountry "SRB"]
[SourceTitle "playchess.com"]
[Source "ChessBase"]
[SourceQuality "1"]
[WhiteTeam "Zimbabwe"]
[BlackTeam "Zambia"]
[WhiteTeamCountry "ZIM"]
[BlackTeamCountry "ZAM"]
[TimeControl "40/5400+30:1800+30"]

{[%evp 12,84,39,42,36,39,45,18,126,23,17,21,59,49,53,3,11,0,0,0,7,0,26,22,25,23,26,27,31,0,0,-39,-42,-65,-60,-72,-10,-25,40,-45,0,-20,-6,-8,-6,-166,-166,-191,-181,-232,-215,-244,-222,-218,-200,-273,-225,-208,-220,-224,-198,-280,-177,-303,-309,-303,-294,-377,-273,-29995,-29996,-29998,-29998,-29998,-29999]} 1. e4 {[%emt 0:02:21]} d6 {[%emt 0:00:34]} 2. d4 {[%emt 0:00:20]} Nf6 {[%emt 0:00:41]} 3. Nc3 {[%emt 0:00:11]} g6 {[%emt 0:01:18]} 4. Bg5 {[%emt 0:00:13]} Bg7 {[%emt 0:01:49]} 5. Qd2 {[%emt 0:00:13]} c6 {[%emt 0:02:25]} 6. Bh6 {[%emt 0:02:41]} Bxh6 {[%emt 0:04:08]} 7. Qxh6 {[%emt 0:00:11]} e5 {[%emt 0:01:18] B07: Pirc Defence: Miscellaneous Systems.} 8. O-O-O {[%emt 0:02:10]} Qe7 {[%emt 0:00:25]} 9. h3 {[%emt 0:06:40] [#]} Be6 $146 {[%emt 0:02:49] [#]} (9... b5 $11) ({Predecessor:} 9... Nbd7 10. Nf3 a6 11. Bd3 b5 12. Rhe1 Bb7 13. Kb1 Ng8 14. Qe3 Ngf6 15. Qh6 Ng8 16. Qe3 Ngf6 {½-½ Gharamian,T (2626)-Bachmann,A (2646) FRA-chT Top 12 2017 (1.2)}) 10. f4 {[%emt 0:02:09]} (10. d5 $1 $16 {[%cal Rd5e6]}) 10... exd4 $11 {[%emt 0:06:56]} 11. Rxd4 {[%emt 0:00:56]} c5 {[%emt 0:11:31]} 12. Rd1 {[%emt 0:09:58][%cal Of4f5]} Nc6 {[%emt 0:03:28]} 13. g4 {[%emt 0:03:37]} (13. e5 $14 dxe5 14. Nf3 (14. fxe5 Nxe5 15. Bb5+ Bd7 $11)) 13... O-O-O $1 {[%emt 0:11:47] aiming for ...d5.} 14. f5 {[%emt 0:07:41]} Bd7 {[%emt 0:03:18]} 15. Bg2 {[%emt 0:07:13]} Nd4 {[%emt 0:01:52]} 16. Nf3 {[%emt 0:03:44]} Nxf3 {[%emt 0:02:37]} 17. Bxf3 {[%emt 0:00:01]} Bc6 {[%emt 0:00:22]} 18. Rhe1 {[%emt 0:07:58]} Nd7 {[%emt 0:01:35]} 19. Qf4 {[%emt 0:02:56]} Ne5 {[%emt 0:01:07]} 20. f6 {[%emt 0:02:12]} Qe6 {[%emt 0:01:29][%cal Og6g5]} 21. Bg2 {[%emt 0:00:44]} h6 {[%emt 0:00:53]} 22. Rd2 {[%emt 0:11:57]} g5 {[%emt 0:02:22]} 23. Qf5 {[%emt 0:00:04]} Qxf5 {[%emt 0:02:20]} (23... h5 $17) 24. exf5 {[%emt 0:00:02]} Rhe8 {[%emt 0:01:10]} (24... h5 $11) 25. Red1 {[%emt 0:02:37]} ({White should try} 25. Bxc6 $14 bxc6 26. Rde2) 25... Kc7 {[%emt 0:05:04]} (25... Nc4 $5 26. Bxc6 bxc6 $15) 26. Bxc6 {[%emt 0:00:45]} bxc6 {[%emt 0:00:27]} 27. Re2 {[%emt 0:05:34]} Nd7 {[%emt 0:04:06]} 28. Rg2 {[%emt 0:09:26] White does not recover from this.} (28. Re7 $11 {and White has nothing to worry.}) 28... Nxf6 {[%emt 0:01:50]} 29. Rh1 {[%emt 0:00:16]} d5 {[%emt 0:01:22][%cal Bd6d5,Bd5d4][%mdl 32]} 30. Kd1 {[%emt 0:02:44]} (30. Nd1 $142) 30... d4 $19 {[%emt 0:01:31]} 31. Na4 {[%emt 0:00:57]} Kd6 {[%emt 0:02:13]} 32. b3 {[%emt 0:00:06]} Nd5 {[%emt 0:03:46] Threatens to win with ...Ne3+.} 33. Kd2 {[%emt 0:00:42]} Re4 {[%emt 0:02:15]} 34. Nb2 {[%emt 0:01:12]} Nf4 {[%emt 0:02:34]} 35. Rf2 {[%emt 0:01:43]} Rde8 {[%emt 0:01:57]} 36. Rhh2 {[%emt 0:02:18]} (36. h4 $142) 36... Nd5 {[%emt 0:02:36]} 37. Nd3 {[%emt 0:01:20]} (37. Nc4+ {was worth a try.} Kc7 38. Re2) 37... Nc3 {[%emt 0:01:49]} 38. a4 {[%emt 0:00:13]} Re3 {[%emt 0:00:50]} 39. Rfg2 {[%emt 0:00:47]} Rf3 {[%emt 0:02:15] ( -> ...Rf1)} 40. h4 $2 {[%emt 0:00:44] [#]} (40. Rg1 $19) 40... Rf1 {[%emt 0:01:48][%cal Rc3b1] Black mates.} 41. Nf2 {[%emt 0:32:42]} Nb1+ {[%emt 0:33:13]} 42. Kd3 {[%emt 0:00:00]} Re3+ {[%emt 0:00:00] Weighted Error Value: White=0.54/Black=0.23 (precise)} 0-1